Cogmind - Beta 16 --- EXPLORER MODE // 2026.01.23 @ 13:28:20 Player: K.K.Y. Result: Self-destructed Performance ------------- Evolutions (5) 2500 Regions Visited (6) 1200 Robots Destroyed (69) 345 Value Destroyed (2384) 2384 Prototype IDs (6) 120 Alien Tech Used (0) 0 Bonus (2000) 2000 TOTAL SCORE: 8549 Bonus ------- Delivered SUBCON Basin 2000 Cogmind --------- Core Integrity 856/1000 Matter 30/300 Energy 35/100 System Corruption 9% Temperature Cool (0) Movement Immobile (Siege) Location -5/Factory Parts ------- > --- POWER (2) -------- (None) > --- PROPULSION (6) --- Improved Medium Treads Armored Medium Treads Heavy Treads Heavy Treads > --- UTILITY (8) ------ Improved Cooling System Huge Storage Unit Improved Sensor Array Improved Medium Armor Plating Makeshift Light Armor Plating Makeshift Light Armor Plating Improved Shield Generator > --- WEAPON (2) ------- Cooled Plasma Rifle Long-range Proton Cannon > --- INVENTORY (25) --- Medium Treads Medium Storage Unit High-capacity Storage Unit Machine Analyzer Advanced Terrain Scanner Launcher Guidance Computer Core Analyzer Advanced ECM Suite EM Shield EM Disruption Field Point Defense System Point Defense System Hacking Suite Makeshift Hacking Suite Improved Hacking Suite Improved System Shield Authchip [Processor] Authchip [Armor] Tech Extrapolator Gatling Laser Antimatter Cannon Improved Remote Datajack Multitool Powered Hammer Peak State ------------ > --- POWER ------------ Improved Deuterium Engine Light Fission Core > --- PROPULSION ------- Improved Medium Treads Armored Medium Treads Heavy Treads Heavy Treads > --- UTILITY ---------- Improved Cooling System Huge Storage Unit Improved Sensor Array Improved Medium Armor Plating Makeshift Light Armor Plating Makeshift Light Armor Plating Improved Shield Generator > --- WEAPON ----------- Cooled Plasma Rifle Long-range Proton Cannon > --- INVENTORY -------- Medium Treads Medium Storage Unit High-capacity Storage Unit Machine Analyzer Advanced Terrain Scanner Launcher Guidance Computer Core Analyzer Advanced ECM Suite EM Shield EM Disruption Field Point Defense System Point Defense System Hacking Suite Makeshift Hacking Suite Improved Hacking Suite Improved System Shield Authchip [Processor] Authchip [Armor] Tech Extrapolator Gatling Laser Antimatter Cannon Improved Remote Datajack Multitool Powered Hammer [Rating: 91] Favorites ----------- Power Improved Ion Engine Engine Improved Ion Engine Power Core Light Fission Core Propulsion Light Treads Treads Light Treads Utility Huge Storage Unit Device Structural Scanner Storage Huge Storage Unit Protection Makeshift Light Armor Plating Weapon Improved EM Shotgun Energy Gun Improved EM Shotgun Energy Cannon Long-range Proton Cannon Ballistic Gun Flak Gun Ballistic Cannon Battle Cannon Special Weapon Mining Laser Impact Weapon Powered Hammer Build | -11 -10 -10 -10 -7 -7 -5 ------- Run | Yrd Mat Min Sub Rec Scr Fac Slots Evolved 11 | . 1 . . . . 10 Power 1 | . . . . . . 1 Propulsion 4 | . . . . . . 4 Utility 6 | . 1 . . . . 5 Weapon . | . . . . . . . Parts Attached 61 | 8 9 3 13 11 4 13 Power 9 | 1 2 1 1 2 . 2 Engine 7 | 1 2 1 1 2 . . Core 2 | . . . . . . 2 Reactor . | . . . . . . . Propulsion 13 | 2 1 1 1 4 . 4 Treads 13 | 2 1 1 1 4 . 4 Leg . | . . . . . . . Wheel . | . . . . . . . Hover . | . . . . . . . Flight . | . . . . . . . Utility 20 | 3 2 1 7 1 2 4 Device 6 | . . . 2 . 1 3 Storage 3 | 1 1 . . 1 . . Processor . | . . . . . . . Hackware . | . . . . . . . Protection 11 | 2 1 1 5 . 1 1 Artifact . | . . . . . . . Weapon 19 | 2 4 . 4 4 2 3 Energy Gun 10 | 1 3 . 3 2 . 1 Energy Cannon 1 | . . . . . . 1 Ballistic Gun 3 | 1 . . . 1 1 . Ballistic Cannon 3 | . . . 1 1 . 1 Launcher . | . . . . . . . Special Weapon 1 | . 1 . . . . . Impact Weapon 1 | . . . . . 1 . Slashing Weapon . | . . . . . . . Piercing Weapon . | . . . . . . . Special Melee Weapon . | . . . . . . . Unidentified Prototypes 3 | . 1 . . . . 2 Parts Lost 12 | . . 3 6 . . 3 Power 4 | . . 1 1 . . 2 Propulsion 2 | . . . 2 . . . Utility 3 | . . 1 1 . . 1 Weapon 3 | . . 1 2 . . . Highest Loss Streak 3 | . . 3 2 . . 2 To Critical Strikes . | . . . . . . . Average Backups 16 | 2 10 16 16 15 24 23 Power . | . . . . . . . Propulsion . | . . . . . . . Utility 10 | 1 7 11 10 8 17 17 Weapon 3 | . 2 2 3 4 4 3 Tool/Special . | . . . . . . . Unused Backups 36 | . . . 5 8 4 19 Power . | . . . . . . . Propulsion 2 | . . . 1 1 . . Utility 24 | . . . 4 3 1 16 Weapon 5 | . . . . 4 1 . Tool/Special 5 | . . . . . 2 3 Average Slot Usage (%) 93 | . 96 90 93 98 98 69 Engine 11 | . 12 11 11 12 12 4 Treads 21 | . 25 25 19 23 25 17 Device 4 | . . . 7 . 1 14 Storage 11 | . 8 12 12 12 12 5 Protection 20 | . 25 25 16 25 23 11 Energy Gun 13 | . 23 16 16 8 . 1 Ballistic Gun 2 | . 1 . . 3 10 3 Ballistic Cannon 5 | . . . 4 11 12 4 Special Weapon 1 | . . . 3 . . . Peak Build Rating 91 | 7 15 16 36 39 38 91 Average Rating 24 | 6 12 14 19 31 36 67 On Entrance 20 | . 7 15 15 36 34 33 Avg Prop Armor Cover (%) . | . . . . . . . Naked Turns . | . . . . . . . Heaviest Build 126 | 12 99 99 100 100 109 126 Greatest Support 197 | 40 40 40 40 56 56 197 Greatest Overweight (x) 4 | 1 2 2 4 4 1 2 Average Overweight (x) 1 | . 1 2 2 1 1 . Largest Inventory Capacity 25 | 10 25 25 25 25 25 25 Average Capacity 23 | 5 19 25 25 21 24 25 Most Carried 25 | 5 16 17 25 25 25 25 Average Carried 18 | 2 10 16 20 20 24 23 Final Capacity 25 | 5 25 25 25 20 25 25 Final Carried 25 | 3 15 16 24 20 25 24 Class Distribution -------------------- 81% | Hacker-Mutant 18% | Commander-Mutant Dominant Class ---------------- Hacker-Mutant | -10/Materials Hacker-Mutant | -10/Mines Hacker-Mutant | -10/Subcaves Hacker-Mutant | -7/Recycling Commander-Mutant | -7/Scraptown Commander-Mutant | -5/Factory Resources | -11 -10 -10 -10 -7 -7 -5 ----------- Run | Yrd Mat Min Sub Rec Scr Fac Matter Collected 1407 | 307 154 40 285 216 10 395 Remotely . | . . . . . . . Salvage Created 2697 | 158 538 125 935 449 . 492 Parts 161 | 17 38 6 58 20 . 22 Haulers Intercepted 2 | . 2 . . . . . Recyclers Shooed 1 | 1 . . . . . . Parts Field Recycled . | . . . . . . . Retrieved Matter . | . . . . . . . Parts Self-Destructed . | . . . . . . . Prevented . | . . . . . . . Parts Restored . | . . . . . . . Kills | -11 -10 -10 -10 -7 -7 -5 ------- Run | Yrd Mat Min Sub Rec Scr Fac Combat Hostiles Destroyed 57 | . 11 5 19 7 . 15 Guns 38 | . 11 4 12 4 . 7 Cannons 12 | . . . 2 3 . 7 AOE 3 | . . 1 2 . . . Classes Destroyed 15 | 2 5 2 2 1 . 3 Worker 1 | . 1 . . . . . Builder 3 | . 2 1 . . . . Tunneler 6 | 6 . . . . . . Hauler 2 | . 2 . . . . . Recycler 1 | 1 . . . . . . Turret 1 | . . . 1 . . . Swarmer 10 | . 4 . 3 . . 3 Grunt 12 | . 7 . 2 2 . 1 Brawler 1 | . . . . . . 1 Duelist 2 | . . . . . . 2 Sentry 7 | . . 2 1 4 . . Hunter 5 | . . . . . . 5 Programmer 4 | . . . . 1 . 3 Subdweller 13 | . . . 13 . . . Assembled 2 | . . 2 . . . . Best Kill Streak 7 | 2 7 2 5 3 . 3 Combat Bots Only 5 | . 5 2 5 3 . 3 Max Kills in Single Turn 2 | 1 2 1 1 1 . 1 Gunslinging 1 | . 1 . . . . . Exploded 1 | . . 1 1 . . . Melee . | . . . . . . . Uniques/NPCs Destroyed 1 | . . 1 . . . . YI-UF0 (-10/Mines) Combat | -11 -10 -10 -10 -7 -7 -5 -------- Run | Yrd Mat Min Sub Rec Scr Fac Hostile Shots Fired 545 | . 58 32 100 89 . 266 Missed 157 | . 17 16 28 26 . 70 Hits 388 | . 41 16 72 63 . 196 Melee 7 | . . . . . . 7 Projectile 381 | . 41 16 72 63 . 189 AOE 18 | . . 18 . . . . Critical Strikes 9 | . . . 1 2 . 6 Damage Taken 4042 | . 290 420 808 348 . 2176 Core 390 | . 57 44 92 53 . 144 Absorbed by Shields 589 | . . . . . . 589 Reduced by Siege Mode 67 | . . . . . . 67 Redirected to Shielding 31 | . 10 7 14 . . . Ignored by Resistances 2750 | . 196 242 462 237 . 1613 Regen/Repaired (Parts) 550 | . . . . . 550 . Core Remaining (%) 50 | 100 . . . . 1 . Volleys Fired 221 | 9 34 9 77 18 . 74 Largest 2 | 2 2 2 2 2 . 2 Hottest 145 | 60 145 145 145 83 . 105 Shots Fired 415 | 18 68 13 150 36 . 130 Gun 295 | 18 67 11 108 18 . 73 Cannon 93 | . . . 18 18 . 57 Launcher . | . . . . . . . Special 27 | . 1 2 24 . . . Kinetic 127 | 9 1 . 18 19 . 80 Thermal 119 | 9 40 2 24 . . 44 Explosive . | . . . . . . . Electromagnetic 169 | . 27 11 108 17 . 6 Robot Hit Streak 58 | 13 12 10 58 32 . 37 Robot Miss Streak 4 | 1 3 2 1 1 . 4 Penetration Max 1 | . . . . . . 1 Secondary Targets 4 | . 3 . 1 . . . Max Gunslinging Chain 1 | . 1 . 1 . . . Shots Hit Robots 294 | 14 46 7 80 31 . 116 Core Hits 189 | 8 24 9 50 24 . 74 Critical Kills . | . . . . . . . Critical Parts Destroyed . | . . . . . . . Critical Strikes 11 | . . . . 2 . 9 Burn 4 | . . . . . . 4 Blast 7 | . . . . 2 . 5 Melee Attacks . | . . . . . . . Impact . | . . . . . . . Slashing . | . . . . . . . Piercing . | . . . . . . . Sneak Attacks . | . . . . . . . Combat Hostiles . | . . . . . . . Follow-up Attacks . | . . . . . . . Damage Inflicted 6200 | 177 641 180 1632 642 . 2928 Guns 4332 | 177 613 116 1316 332 . 1778 Cannons 1561 | . . . 101 310 . 1150 Explosions 230 | . 28 59 143 . . . Melee . | . . . . . . . Ramming 5 | . . 5 . . . . Kinetic 2311 | 89 10 . 101 336 . 1775 Thermal 1825 | 88 345 59 215 . . 1118 Explosive . | . . . . . . . Electromagnetic 2059 | . 286 116 1316 306 . 35 Impact . | . . . . . . . Slashing . | . . . . . . . Piercing . | . . . . . . . Highest Corruption 9 | . . . . . . 9 Average Corruption 2 | . . . . . . 2 Corruption Purged . | . . . . . . . Corruption Blocked . | . . . . . . . Effects 11 | . . . . . . 11 Message Errors 3 | . . . . . . 3 Matter Fused 3 | . . . . . . 3 Heat Flow Errors 1 | . . . . . . 1 Energy Discharges 1 | . . . . . . 1 Data Loss (minor) 3 | . . . . . . 3 Overload Shots . | . . . . . . . Overflow Damage 13 | . . . . . . 13 Projectiles 13 | . . . . . . 13 Explosions . | . . . . . . . Melee . | . . . . . . . Knockbacks 14 | . . . . 3 . 11 Impact . | . . . . . . . Kinetic 13 | . . . . 2 . 11 Secondary 1 | . . . . 1 . . Self-Inflicted Damage 85 | . 17 13 55 . . . Shots 4 | . 1 1 2 . . . Rammed . | . . . . . . . Targets Rammed 1 | . . 1 . . . . Kicked . | . . . . . . . Crushed 1 | . . 1 . . . . Highest Temperature 502 | 27 502 84 160 435 . 231 Average Temperature 103 | 9 122 34 36 129 . 63 Received Heat Transfer 1210 | . 90 36 532 207 . 345 Effects 11 | . 5 . . 4 . 2 Shutdowns 3 | . 2 . . 1 . . Energy Bleed 2 | . 1 . . 1 . . Interference 2 | . . . . . . 2 Matter Decay 1 | . 1 . . . . . Short Circuit 1 | . . . . 1 . . Damage (minor) 2 | . 1 . . 1 . . Siege Activations 1 | . . . . . . 1 Total Turns 38 | . . . . . . 38 Longest Duration 38 | . . . . . . 38 Martial Activations . | . . . . . . . Shielding Activations . | . . . . . . . Robots Disrupted . | . . . . . . . Combat Hostiles . | . . . . . . . Robots Corrupted 3 | . . . 3 . . . Combat Hostiles 3 | . . . 3 . . . Parts Fried 13 | . 2 . 11 . . . Impact Corruptions . | . . . . . . . Robots Melted 1 | . . . . . . 1 Combat Hostiles 1 | . . . . . . 1 Parts Melted 9 | . 2 . 2 . . 5 Heat Transferred 3931 | 200 881 50 300 . . 2500 Parts Sabotaged . | . . . . . . . Parts Stolen . | . . . . . . . Parts Stripped . | . . . . . . . Power Chain Reactions 5 | . 1 1 3 . . . Alert | -11 -10 -10 -10 -7 -7 -5 ------- Run | Yrd Mat Min Sub Rec Scr Fac Maximum Alert Level . | . . . . . . . Low Security (%) 100 | 100 100 100 . 100 . 100 Level 1 . | . . . . . . . Level 2 . | . . . . . . . Level 3 . | . . . . . . . Level 4 . | . . . . . . . Level 5 . | . . . . . . . High Security . | . . . . . . . Max Security . | . . . . . . . Peak Influence 105 | 10 105 30 . 46 . 63 Initial . | . . . . . . . Average 3 | 1 7 . . 1 . 9 Influence Increases 1193 | 35 341 50 205 186 . 376 Destroy 0b10 Robot/C 840 | . 220 40 140 140 . 300 Destroy 0b10 Robot/NC 70 | 35 25 5 . 5 . . Destroy Leader 124 | . 54 . 20 . . 50 Successful Hack 76 | . 38 . . 38 . . Disable Machine 16 | . 4 . . . . 12 Destroy Structure 22 | . . 5 . 3 . 14 Lose Combat Pursuer 45 | . . . 45 . . . Influence Decreases 1193 | 35 341 50 205 186 . 376 Time Decay 1140 | 35 341 50 205 186 . 323 Lost Part 30 | . . . . . . 30 Lost Ally 23 | . . . . . . 23 Squads Dispatched 6 | . 3 . . . . 3 Investigation 4 | . 3 . . . . 1 Extermination 1 | . . . . . . 1 Reinforcement 1 | . . . . . . 1 Assault . | . . . . . . . Garrison . | . . . . . . . Intercept . | . . . . . . . Searches Triggered . | . . . . . . . Construction Impeded . | . . . . . . . Haulers Reinforced . | . . . . . . . Active Scanning Responses . | . . . . . . . Cargo Convoy Interrupts . | . . . . . . . Stealth | -11 -10 -10 -10 -7 -7 -5 --------- Run | Yrd Mat Min Sub Rec Scr Fac Distress Signals 3 | . 2 . . . . 1 Communications Jammed . | . . . . . . . Distress Signals . | . . . . . . . Times Spotted 73 | . 11 6 25 7 . 24 Peak Tracking Total 4 | . 3 2 4 3 . 4 Tactical Retreats 3 | . . 1 2 . . . Traps | -11 -10 -10 -10 -7 -7 -5 ------- Run | Yrd Mat Min Sub Rec Scr Fac Traps Triggered 4 | . 2 . 1 . . 1 Indirectly . | . . . . . . . Trap Hack Attempts . | . . . . . . . Triggered . | . . . . . . . Disarmed . | . . . . . . . Reprogrammed . | . . . . . . . Reused . | . . . . . . . Traps Extracted . | . . . . . . . Installed . | . . . . . . . Triggered . | . . . . . . . Machines | -11 -10 -10 -10 -7 -7 -5 ---------- Run | Yrd Mat Min Sub Rec Scr Fac Machines Disabled 5 | . 1 . 1 . . 3 Max in Single Turn 1 | . 1 . 1 . . 1 Machines Repaired . | . . . . . . . Machines Dismantled . | . . . . . . . Machines Sabotaged . | . . . . . . . Overloaded Fab Kills . | . . . . . . . Hacking | -11 -10 -10 -10 -7 -7 -5 --------- Run | Yrd Mat Min Sub Rec Scr Fac Machines Accessed 23 | . 8 . 3 11 . 1 Terminals 10 | . 6 . . 4 . . Fabricators . | . . . . . . . Repair Stations . | . . . . . . . Recycling Units 10 | . 2 . . 7 . 1 Scanalyzers . | . . . . . . . Garrison Access . | . . . . . . . Total Hacks 68 | . 30 . 6 29 . 3 Successful 41 | . 15 . 6 20 . . Failed 27 | . 15 . . 9 . 3 Catastrophic 2 | . 1 . . 1 . . Database Lockouts . | . . . . . . . Manual 35 | . 26 . . 9 . . Terminals 37 | . 26 . . 11 . . Fabricators . | . . . . . . . Repair Stations . | . . . . . . . Recycling Units 25 | . 4 . . 18 . 3 Scanalyzers . | . . . . . . . Garrison Access . | . . . . . . . Terminal Hacks 25 | . 13 . 6 6 . . Record 6 | . . . 4 2 . . Part Schematic 14 | . 12 . . 2 . . Robot Analysis 1 | . 1 . . . . . Prototype ID Bank 1 | . . . . 1 . . Open Door 1 | . . . 1 . . . Maintenance Status 1 | . . . . 1 . . Release Object 1 | . . . 1 . . . Fabricator Hacks . | . . . . . . . Repair Station Hacks . | . . . . . . . Recycling Unit Hacks 11 | . 2 . . 9 . . Retrieve Matter 2 | . . . . 2 . . Retrieve Components 9 | . 2 . . 7 . . Scanalyzer . | . . . . . . . Garrison Access Hacks . | . . . . . . . Unauthorized Hacks 5 | . . . . 5 . . Terminals 2 | . . . . 2 . . Botnet 2 | . . . . 2 . . Fabricators . | . . . . . . . Repair Stations . | . . . . . . . Recycling Units 3 | . . . . 3 . . Reject 3 | . . . . 3 . . Scanalyzers . | . . . . . . . Garrison Access . | . . . . . . . Data Cores Recovered . | . . . . . . . Used . | . . . . . . . Hacking Detections 16 | . 8 . . 7 . 1 Full Trace Events 10 | . 6 . . 3 . 1 Feedback Events . | . . . . . . . Feedback Blocked . | . . . . . . . Robot Schematics Acquired . | . . . . . . . Robots Built . | . . . . . . . Authchips . | . . . . . . . Time . | . . . . . . . Total Robot Build Rating . | . . . . . . . Part Schematics Acquired 12 | . 10 . . 2 . . Parts Built . | . . . . . . . Authchips . | . . . . . . . Time . | . . . . . . . Total Part Build Rating . | . . . . . . . Part Studies Acquired . | . . . . . . . Parts Repaired . | . . . . . . . Time . | . . . . . . . Parts Recycled . | . . . . . . . Recycled Matter . | . . . . . . . Retrieved Matter . | . . . . . . . Retrieved Components 37 | . 18 . . 19 . . Parts Scanalyzed . | . . . . . . . Part Schematics Acquired . | . . . . . . . Parts Damaged . | . . . . . . . Bothacking | -11 -10 -10 -10 -7 -7 -5 ------------ Run | Yrd Mat Min Sub Rec Scr Fac Used RIF Installer . | . . . . . . . Robots Hacked . | . . . . . . . Non-combat . | . . . . . . . Combat . | . . . . . . . Robot Hacks Applied . | . . . . . . . Relay Couplers Released . | . . . . . . . Fabnet Peak Effective % . | . . . . . . . Robots Rewired 5 | . . . . 5 . . Allies Hacked . | . . . . . . . Hacks Repelled . | . . . . . . . Allies | -11 -10 -10 -10 -7 -7 -5 -------- Run | Yrd Mat Min Sub Rec Scr Fac Total Allies 5 | . . . . 5 . . Largest Group 5 | . . . . 5 5 5 Highest-Rated Group 74 | . . . . 74 74 74 Highest-Rated Ally 40 | . . . . 40 40 40 Total Orders . | . . . . . . . Ally Attacks . | . . . . . . . Total Damage . | . . . . . . . Kills . | . . . . . . . Allies Corrupted . | . . . . . . . Allies Melted . | . . . . . . . Intel | -11 -10 -10 -10 -7 -7 -5 ------- Run | Yrd Mat Min Sub Rec Scr Fac Active Infowar (turns) 2946 | . . . 1839 . 128 979 Sensors 2945 | . . . 1838 . 128 979 Structural 1839 | . . . 1839 . . . Traps 346 | . . . . . . 346 Robot Analysis Total 1 | . 1 . . . . . Derelict Logs Recovered 1 | . . . 1 . . . Drone Launches . | . . . . . . . Drone Recoveries . | . . . . . . . Exploration | -11 -10 -10 -10 -7 -7 -5 ------------- Run | Yrd Mat Min Sub Rec Scr Fac Turns Passed 14975 | 222 1965 1904 5917 2459 1483 1025 Spaces Moved 4612 | 99 713 571 1474 803 603 349 Core 19 | 19 . . . . . . Treads 4593 | 80 713 571 1474 803 603 349 Legs . | . . . . . . . Wheels . | . . . . . . . Hover . | . . . . . . . Flight . | . . . . . . . Fastest Speed 50 | 50 160 320 320 240 240 160 Average Speed 297 | 139 252 320 377 276 240 207 Slowest Speed 480 | 160 320 320 480 480 240 320 Overloaded Moves . | . . . . . . . Propulsion Burnouts . | . . . . . . . Robots Hopped . | . . . . . . . Potential Cave-ins . | . . . . . . . Cave-ins Triggered . | . . . . . . . Exploration Rate (%) 62 | 5 99 99 78 99 49 10 Regions Visited 6 Branch Regions 4 Pre-discovered Areas 1 | . . . 1 . . . Known Exits Taken 6 | 1 1 1 1 1 1 . Unknown Exits Taken . | . . . . . . . Scrap Searched 13 | . . . 8 . 5 . Spaces Dug 1 | . . . 1 . . . Terrain Destroyed 29 | . . 3 16 3 . 7 Melee . | . . . . . . . Projectile 11 | . . . 1 3 . 7 AOE 18 | . . 3 15 . . . Terrain Rammed . | . . . . . . . Walls Destroyed . | . . . . . . . Machines Disabled . | . . . . . . . Actions | -11 -10 -10 -10 -7 -7 -5 --------- Run | Yrd Mat Min Sub Rec Scr Fac Total 5421 | 164 810 630 1638 1015 643 521 Wait 329 | 41 26 40 35 107 16 64 Move 4606 | 98 712 570 1473 802 602 349 Hop . | . . . . . . . Pick Up 91 | 7 18 5 15 25 11 10 Fast Attach 11 | 3 2 . . 1 . 5 Attach 28 | 5 1 3 8 3 . 8 Detach 8 | 1 1 . 3 2 1 . Swap 37 | . 8 1 11 8 6 3 Drop 57 | . 7 1 16 18 7 8 Fire 221 | 9 34 9 77 18 . 74 Melee . | . . . . . . . Ram . | . . . . . . . Kick . | . . . . . . . Crush 1 | . . 1 . . . . Escape Stasis . | . . . . . . . Rewire 32 | . 1 . . 31 . . Trap . | . . . . . . . Miscellaneous . | . . . . . . . Route ------- -11/Scrapyard -10/Materials (discovered 5 exits: *Mat x3 / *Min x2) -10/Mines (discovered 3 exits: *Mat x2 / *Sub) -10/Subcaves (discovered 2 exits: *Mat / *Rec) -7/Recycling (discovered 2 exits: *Fac / *Scr) -7/Scraptown -5/Factory History --------- Turn | Location | Event 6 | -11/Scrapyard | Identified exit to Materials 6 | -11/Scrapyard | Discovered exit to Materials (range 15) 223 | -11/Scrapyard | Entered Materials 223 | -10/Materials | Evolved 1 slot: Utility x1 224 | -10/Materials | Met a group of wandering Federalists 300 | -10/Materials | Build established: Hacker-Mutant 410 | -10/Materials | Identified exit to Materials 410 | -10/Materials | Discovered exit to Materials (range 8) 501 | -10/Materials | Identified exit to Mines 501 | -10/Materials | Discovered exit to Mines (range 7) 997 | -10/Materials | Discovered exit to Materials (range 16) 1431 | -10/Materials | Discovered exit to Materials (range 14) 1908 | -10/Materials | Discovered exit to Mines (range 15) 2188 | -10/Materials | Entered Mines 2189 | -10/Mines | Assembled infested the area 2194 | -10/Mines | Assisted by a Guerilla fighting off Assembled 2301 | -10/Mines | Discovered exit to Materials (range 6) 2595 | -10/Mines | Discovered exit to Materials (range 9) 2817 | -10/Mines | Destroyed YI-UF0 2845 | -10/Mines | Lost 3 parts (1p1u1w) 4085 | -10/Mines | Identified exit to Subcaves 4085 | -10/Mines | Discovered exit to Subcaves (range 3) 4092 | -10/Mines | Entered Subcaves 4093 | -10/Subcaves | Approached by a straggling Scientist 5270 | -10/Subcaves | Visited Clippyterm 5280 | -10/Subcaves | Learned Factory garrison access intel 5346 | -10/Subcaves | Core integrity fell below 50% 5496 | -10/Subcaves | A swath of the cavern ceiling suddenly collapsed 5981 | -10/Subcaves | Identified exit to Recycling 5981 | -10/Subcaves | Discovered exit to Recycling (range 12) 6478 | -10/Subcaves | Shifting Twisted Machinery released Multitool 6530 | -10/Subcaves | Identified exit to Materials 6530 | -10/Subcaves | Discovered exit to Materials (range 8) 6719 | -10/Subcaves | Learned 4 Materials zone layouts 6866 | -10/Subcaves | A swath of the cavern ceiling suddenly collapsed 6958 | -10/Subcaves | Shifting Twisted Machinery released Barrage Gun 7118 | -10/Subcaves | Shifting Twisted Machinery released Mak. Laser 7366 | -10/Subcaves | Shifting Twisted Machinery released Barrage Gun 7497 | -10/Subcaves | Shifting Twisted Machinery released Piercing Trap 8614 | -10/Subcaves | Learned location of Zion (-6) 8614 | -10/Subcaves | Met a Zionite searching for "candidates" 8751 | -10/Subcaves | Found SUBCON Basin 10009 | -10/Subcaves | Entered Recycling 10757 | -7/Recycling | Scanned before Scraplab entrance 10806 | -7/Recycling | Entered Scraplab 11037 | -7/Recycling | Core integrity fell below 20% 11114 | -7/Recycling | Identified exit to Factory 11114 | -7/Recycling | Discovered exit to Factory (range 14) 12058 | -7/Recycling | Build established: Commander-Mutant 12379 | -7/Recycling | Identified exit to Scraptown 12379 | -7/Recycling | Discovered exit to Scraptown (range 3) 12468 | -7/Recycling | Entered Scraptown 12468 | -7/Scraptown | Accompanied by 5 allies 12837 | -7/Scraptown | Visited Comm Corps 12859 | -7/Scraptown | Visited Red Mages 12902 | -7/Scraptown | Visited Symbiants 12921 | -7/Scraptown | Visited Fellowship of the Rings 12936 | -7/Scraptown | Visited CR-KLE's Repair Center 12974 | -7/Scraptown | Visited TADAMA 13003 | -7/Scraptown | Visited Cyclists 13250 | -7/Scraptown | Heard Great Nut preacher, LISTEN AND RECITE! 13834 | -7/Scraptown | CR-KLE repaired 7 parts 13918 | -7/Scraptown | Discovered exit to Factory (range 7) 13951 | -7/Scraptown | Entered Factory 13951 | -5/Factory | Accompanied by 5 allies 13951 | -5/Factory | Evolved 10 slots: Power x1, Propulsion x4, Utility x5 13952 | -5/Factory | Loaded intel: 3 garrison access locations 14646 | -5/Factory | Lost 5 allies 14859 | -5/Factory | Spotted B-75 Beast 14862 | -5/Factory | Build established: Hacker-Mutant 14976 | -5/Factory | Self-destructed Last Messages --------------- 14913_ Acquired Antimatter Cannon. 14914_ Acquired 4 matter. 14923_ M-28 Smith repairs P-70 Sage. 14924_ System corrupted: Component data lost. 14925_ M-28 Smith fits Backup Propulsion III on P-70 Sage. 14926_ Imp. Heat Sink melted. 14926_ P-70 Sage destroyed. 14927_ M-28 Smith repairs P-70 Sage Antigrav System. 14928_ Lgt. Fission Core destroyed. 14929_ Imp. Deuterium Engine destroyed. 14939_ Activated siege mode. 14944_ System corrupted: Heat flow error (+259). 14945_ Overheating: System interference. 14945_ Cld. Plasma Rifle temporarily disabled. 14945_ Lrn. Proton Cannon temporarily disabled. 14969_ R-10 Processor collects Mic. Fission Core. 14972_ A-15 Conveyor destroyed. Map ----- +----------------------------------------------------+ | ???# #???????????????############??# | | ???# #????????????????# #??###### | | ???# #????????????????#= = #### | | ???# #????????????????#] + | | ???# #??????????####??# = ]#### | | ???# ^^ ^^############T #########+####### ## | | ???# ^^ / [ % # | | ???# ] % % # | | ???# """ """ """ "" = + | | ???# """ """ """ """ # | | ???# """ """ """ """ # | | ???############# ######### | | ???????????????# #????????? | | ???????????????# p #????????? | | ???????????????# #????????? | | ???????????????# #????????? | | ???????????????# ######### #????????? | | ???????????????## ####"#??# #?###????? | | ????????????????# # #### ?? | | ????????????????# ; + ?? | | ????????????????# [ # # ?? | | ????????????????# *[[=[ # #######+#####??? | | ????????????????# !!%%# #?#?????? ?????? | | ????????????????# R!*%!; #????????? ????? | | ???????????????## !!*%! #?????????? ???? | | ???????? [!@m######??????????? ???? | | ??????? !!%;#???????????????????? | | ??????? """ p ?????????????????? | | ???????? "Y ###### ??????????????? | | ???????? ??? """ ##???????##?????????????? | | ???????????? #???????????????????????? | | ???????????? ^ +???????????????????????? | | ??????????? """BB ####???????????????????????? | | ??????????# ""%BB #??????????????????????????? | | ??????????? ??"% ???????????????????????????? | | ??????????????% ???????????????????????????? | | ??????????????]! ???????????????????????????? | | ??????????????]! % ????????????????????????????? | | ???????????????? ? ????????????????????????????? | | ???????????????????????????????????????????????? | | ???????????????????????????????????????????????? | | ???????????????????????????????????????????????? | | ???????????????????????????????????????????????? | | ???????????????????????????????????????????????? | | ???????????????????????????????????????????????? | | ???????????????????????????????????????????????? | | ???????????????????????????????????????????????? | | ???????????????????????????????????????????????? | | ???????????????????????????????????????????????? | | ???????????????????????????????????????????????? | +----------------------------------------------------+ Best States ------------- Heat Dissipation 67 Energy Generation 29 Energy Capacity 350 Matter Stores 300 Matter Capacity 300 Sight Range 16 Robot Scan Range 15 Terrain Scan Density 10 Armor Coverage 850 Resistance: KI 35 Resistance: TH 35 Resistance: EX 35 Resistance: EM 35 Resistance: I 35 Resistance: S 35 Resistance: P 35 Core Shielding 20 Evasion (%) 40 Recoil Reduction 6 Offensive Hacking 20 Authchip Count 2 Item Schematics ----------------- Sml. Storage Unit | -10/Materials | Hacked Med. Storage Unit | -10/Materials | Hacked Lrg. Storage Unit | -10/Materials | Hacked Hcp. Storage Unit | -10/Materials | Hacked Huge Storage Unit | -10/Materials | Hacked Cargo Storage Unit | -10/Materials | Hacked Sensor Array | -10/Materials | Hacked Signal Interpreter | -10/Materials | Hacked Seismic Detector | -10/Materials | Hacked Structural Scanner | -10/Materials | Hacked Adv. ECM Suite | -7/Recycling | Hacked Arc Projector | -7/Recycling | Hacked Robot Schematics ------------------ None Fabricated ------------ Nothing Repaired ---------- Nothing Studied --------- None Alien Tech Used ----------------- None Achievements -------------- None Challenges ------------ None Game ------ Seed ThrowingStrikeChargecaster Manual? 0 Play Time 00:45:06 Cumulative 307.2 hours Start 2026.01.23 @ 12:45:13 End 2026.01.23 @ 13:28:20 Sessions 1 Manual Loads 0 Difficulty Explorer Special Mode None Game No. 475 Rogue 0 Adventurer 0 Explorer 475 Win Type - Total 0 Types 0/0/0/0/0/0/0/0/0/0 Lore% 76 Gallery% 70 Achievement% 56 Wizard Run 0 Options --------- Layout 1 ASCII 0 Keyboard 0 Movement Mouse Keybinds 1 Fullscreen 1 Font 24/Smallcaps Map View 50x35 Zoom Use 0% Tactical HUD 1 Map Filters NONE Filters NONE Steam 1 RUN: 5f0d6613-4243-49d4-8e50-591c8c3d1fa1